fUSD/lending_fUSD_20250103
["ID","MTS","AMOUNT","RATE_DAILY","PERIOD"]
[347551063,1735914643871,-500.0,9.25e-05,2]
[347551065,1735914643881,-500.0,9.25e-05,2]
[347551067,1735914643891,-500.0,9.25e-05,2]
[347551069,1735914643900,-500.0,9.25e-05,2]
[347551071,1735914643909,-834.28,9.25e-05,2]
[347551073,1735914643919,-500.0,9.25e-05,2]
[347551075,1735914643928,-500.0,9.25e-05,2]
[347551077,1735914643937,-583.62,9.25e-05,2]
[347551079,1735914643947,-559.67,9.25e-05,2]
[347551081,1735914643957,-500.0,9.25e-05,2]
[347551083,1735914643966,-500.0,9.25e-05,2]
[347551085,1735914643975,-318.73254569,9.25e-05,2]
[347551087,1735914643984,-500.0,9.25e-05,2]
[347551089,1735914643993,-500.0,9.25e-05,2]
[347551091,1735914644002,-500.0,9.25e-05,2]
[347551093,1735914644012,-500.0,9.25e-05,2]
[347551095,1735914644021,-600.52,9.25e-05,2]
[347551097,1735914644032,-500.0,9.25e-05,2]
[347551099,1735914644041,-500.0,9.25e-05,2]
[347551101,1735914644050,-500.0,9.25e-05,2]
[347551103,1735914644059,-500.0,9.25e-05,2]
[347551105,1735914644068,-500.0,9.25e-05,2]
[347551107,1735914644077,-548.53,9.25e-05,2]
[347551109,1735914644087,-500.0,9.25e-05,2]
[347551111,1735914644096,-500.0,9.25e-05,2]
[347551113,1735914644105,-500.0,9.25e-05,2]
[347551115,1735914644114,-431.92457401,9.25e-05,2]
[347551117,1735914644123,-500.0,9.25e-05,2]
[347551119,1735914644136,-438.32845679,9.25e-05,2]
[347551121,1735914644146,-500.0,9.25e-05,2]
[347551123,1735914644156,-500.0,9.25e-05,2]
[347551125,1735914644165,-1194.13,9.25e-05,2]
[347551127,1735914644175,-500.0,9.25e-05,2]
[347551129,1735914644184,-500.0,9.25e-05,2]
[347551131,1735914644193,-500.0,9.25e-05,2]
[347551133,1735914644202,-500.0,9.25e-05,2]
[347551135,1735914644211,-500.0,9.25e-05,2]
[347551137,1735914644221,-500.0,9.25e-05,2]
[347551139,1735914644230,-513.9559594,9.25e-05,2]
[347551141,1735914644239,-500.0,9.25e-05,2]
[347551143,1735914644248,-500.0,9.25e-05,2]
[347551145,1735914644257,-500.0,9.25e-05,2]
[347551147,1735914644266,-500.0,9.25e-05,2]
[347551149,1735914644275,-500.0,9.25e-05,2]
[347551151,1735914644284,-500.0,9.25e-05,2]
[347551153,1735914644293,-500.0,9.25e-05,2]
[347551155,1735914644302,-634.0,9.25e-05,2]
[347551157,1735914644312,-500.0,9.25e-05,2]
[347551159,1735914644321,-514.64,9.25e-05,2]
[347551161,1735914644330,-500.0,9.25e-05,2]
[347551163,1735914644339,-500.0,9.25e-05,2]
[347551165,1735914644348,-500.0,9.25e-05,2]
[347551167,1735914644357,-500.0,9.25e-05,2]
[347551169,1735914644366,-500.0,9.25e-05,2]
[347551171,1735914644375,-500.0,9.25e-05,2]
[347551173,1735914644387,-500.0,9.25e-05,2]
[347551175,1735914644396,-633.36,9.25e-05,2]
[347551177,1735914644405,-1707.38,9.25e-05,2]
[347551179,1735914644414,-500.0,9.25e-05,2]
[347551181,1735914644423,-610.85,9.25e-05,2]
[347551182,1735914644432,-500.0,9.25e-05,2]
[347551183,1735914644441,-500.0,9.25e-05,2]
[347551184,1735914644450,-500.0,9.25e-05,2]
[347551185,1735914644459,-516.97,9.25e-05,2]
[347551186,1735914644467,-1573.59,9.25e-05,2]
[347551187,1735914644476,-500.0,9.25e-05,2]
[347551188,1735914644485,-500.0,9.25e-05,2]
[347551189,1735914644494,-500.0,9.25e-05,2]
[347551190,1735914644503,-578.18,9.25e-05,2]
[347551191,1735914644512,-549.61,9.25e-05,2]
[347551192,1735914644520,-500.0,9.25e-05,2]
[347551193,1735914644529,-500.0,9.25e-05,2]
[347551195,1735914644539,-500.0,9.25e-05,2]
[347551197,1735914644548,-500.0,9.25e-05,2]
[347551199,1735914644557,-500.0,9.25e-05,2]
[347551201,1735914644566,-500.0,9.25e-05,2]
[347551203,1735914644575,-500.0,9.25e-05,2]
[347551204,1735914644584,-500.0,9.25e-05,2]
[347551206,1735914644593,-500.0,9.25e-05,2]
[347551208,1735914644602,-500.0,9.25e-05,2]
[347551210,1735914644611,-500.0,9.25e-05,2]
[347551212,1735914644620,-500.0,9.25e-05,2]
[347551214,1735914644632,-567.86,9.25e-05,2]
[347551216,1735914644646,-3971.84,9.25e-05,2]
[347551218,1735914644656,-510.55,9.25e-05,2]
[347551220,1735914644666,-625.18926096,9.25e-05,2]
[347551222,1735914644675,-500.0,9.25e-05,2]
[347551224,1735914644685,-500.0,9.25e-05,2]
[347551226,1735914644694,-500.0,9.25e-05,2]
[347551228,1735914644703,-1406.15,9.25e-05,2]
[347551230,1735914644713,-500.0,9.25e-05,2]
[347551232,1735914644722,-500.0,9.25e-05,2]
[347551234,1735914644734,-500.0,9.25e-05,2]
[347551236,1735914644743,-500.0,9.25e-05,2]
[347551238,1735914644753,-500.0,9.25e-05,2]
[347551240,1735914644763,-500.0,9.25e-05,2]
[347551242,1735914644774,-1604.45,9.25e-05,2]
[347551244,1735914644783,-500.0,9.25e-05,2]
[347551246,1735914644792,-500.0,9.25e-05,2]
[347551248,1735914644801,-500.0,9.25e-05,2]
[347551250,1735914644810,-500.0,9.25e-05,2]
[347551252,1735914644820,-2672.29,9.25e-05,2]
[347551254,1735914644829,-500.0,9.25e-05,2]
[347551256,1735914644838,-826.88,9.25e-05,2]
[347551258,1735914644847,-500.0,9.25e-05,2]
[347551260,1735914644856,-500.0,9.25e-05,2]
[347551261,1735914644865,-500.0,9.25e-05,2]
[347551263,1735914644874,-1333.14,9.25e-05,2]
[347551265,1735914644886,-2517.35,9.25e-05,2]
[347551267,1735914644895,-631.79,9.25e-05,2]
[347551269,1735914644904,-1279.53,9.25e-05,2]
[347551271,1735914644914,-2103.03,9.25e-05,2]
[347551273,1735914644923,-523.47,9.25e-05,2]
[347551276,1735914644933,-500.0,9.25e-05,7]
[347551277,1735914644942,-3329.68,9.25e-05,2]
[347551279,1735914644952,-500.0,9.25e-05,2]
[347551280,1735914644961,-500.0,9.25e-05,2]
[347551282,1735914644970,-3086.47,9.25e-05,2]
[347551284,1735914644979,-500.0,9.25e-05,2]
[347551286,1735914644989,-500.0,9.25e-05,2]
[347551288,1735914644998,-2095.36,9.25e-05,2]
[347551290,1735914645007,-500.0,9.25e-05,2]
[347551292,1735914645017,-500.0,9.25e-05,2]
[347551294,1735914645027,-500.0,9.25e-05,2]
[347551296,1735914645036,-500.0,9.25e-05,2]
[347551298,1735914645045,-500.0,9.25e-05,2]
[347551299,1735914645054,-500.0,9.25e-05,2]
[347551301,1735914645063,-6257.52,9.25e-05,2]
[347551303,1735914645073,-500.0,9.25e-05,2]
[347551305,1735914645082,-766.07,9.25e-05,2]
[347551307,1735914645092,-412.04262915,9.25e-05,2]
[347551309,1735914645101,-500.0,9.25e-05,2]
[347551311,1735914645111,-628.16,9.251e-05,2]
[347551313,1735914645120,-500.0,9.251e-05,2]
[347551315,1735914645131,-615.76,9.251e-05,2]
[347551317,1735914645140,-1522.63,9.251e-05,2]
[347551319,1735914645149,-548.4,9.251e-05,2]
[347551321,1735914645158,-532.1,9.251e-05,2]
[347551323,1735914645167,-500.0,9.251e-05,2]
[347551325,1735914645176,-902.36,9.251e-05,2]
[347551326,1735914645186,-536.7,9.251e-05,2]
[347551328,1735914645195,-500.0,9.251e-05,2]
[347551330,1735914645204,-919.22,9.251e-05,2]
[347551332,1735914645214,-544.37,9.251e-05,2]
[347551334,1735914645224,-617.13,9.251e-05,2]
[347551336,1735914645233,-747.94,9.251e-05,2]
[347551338,1735914645243,-500.0,9.251e-05,2]
[347551340,1735914645252,-500.0,9.251e-05,2]
[347551342,1735914645266,-709.97,9.251e-05,2]
[347551344,1735914645279,-724.6,9.251e-05,2]
[347551346,1735914645289,-500.0,9.251e-05,2]
[347551348,1735914645298,-500.0,9.251e-05,2]
[347551350,1735914645308,-672.5,9.251e-05,2]
[347551352,1735914645317,-500.0,9.251e-05,2]
[347551353,1735914645327,-500.0,9.251e-05,2]
[347551355,1735914645337,-500.0,9.251e-05,2]
[347551357,1735914645346,-581.68,9.251e-05,2]
[347551359,1735914645356,-500.0,9.251e-05,2]
[347551361,1735914645365,-500.0,9.251e-05,2]
[347551363,1735914645375,-510.96,9.251e-05,2]
[347551365,1735914645386,-500.0,9.251e-05,2]
[347551367,1735914645395,-5083.53,9.251e-05,2]
[347551369,1735914645404,-500.0,9.251e-05,2]
[347551371,1735914645413,-500.0,9.251e-05,2]
[347551373,1735914645423,-500.0,9.251e-05,2]
[347551375,1735914645432,-500.0,9.251e-05,2]
[347551377,1735914645442,-500.0,9.251e-05,2]
[347551379,1735914645451,-832.54,9.251e-05,2]
[347551381,1735914645461,-500.0,9.251e-05,2]
[347551382,1735914645471,-719.6,9.251e-05,2]
[347551383,1735914645480,-500.0,9.251e-05,2]
[347551384,1735914645489,-500.0,9.251e-05,2]
[347551385,1735914645498,-500.0,9.251e-05,2]
[347551386,1735914645507,-500.0,9.251e-05,2]
[347551387,1735914645517,-1291.61,9.251e-05,2]
[347551388,1735914645526,-500.0,9.251e-05,2]
[347551389,1735914645536,-500.0,9.251e-05,2]
[347551390,1735914645546,-500.0,9.251e-05,2]
[347551391,1735914645556,-500.0,9.251e-05,2]
[347551392,1735914645565,-507.76,9.251e-05,2]
[347551393,1735914645575,-500.0,9.251e-05,2]
[347551394,1735914645584,-509.01,9.251e-05,2]
[347551395,1735914645594,-899.91,9.251e-05,2]
[347551396,1735914645603,-500.0,9.251e-05,2]
[347551397,1735914645613,-500.0,9.251e-05,2]
[347551398,1735914645622,-874.31,9.251e-05,2]
[347551399,1735914645632,-669.92,9.251e-05,2]
[347551400,1735914645642,-500.0,9.251e-05,2]
[347551401,1735914645651,-500.0,9.251e-05,2]
[347551402,1735914645661,-642.55,9.251e-05,2]
[347551403,1735914645670,-501.17,9.251e-05,2]
[347551404,1735914645680,-500.0,9.251e-05,2]
[347551406,1735914645690,-500.0,9.251e-05,2]
[347551408,1735914645699,-739.93,9.251e-05,2]
[347551410,1735914645709,-500.0,9.251e-05,2]
[347551412,1735914645718,-2588.26,9.251e-05,2]
[347551414,1735914645728,-500.0,9.251e-05,2]
[347551416,1735914645742,-976.97,9.251e-05,2]
[347551418,1735914645751,-781.74,9.251e-05,2]
[347551420,1735914645760,-500.0,9.251e-05,2]
[347551422,1735914645770,-573.4,9.251e-05,2]
[347551424,1735914645780,-739.75,9.251e-05,2]
[347551426,1735914645790,-500.0,9.251e-05,2]
[347551428,1735914645799,-1245.02,9.251e-05,2]
[347551430,1735914645807,-604.1,9.251e-05,2]
[347551432,1735914645817,-500.0,9.251e-05,2]
[347551434,1735914645827,-500.0,9.251e-05,2]
[347551436,1735914645836,-1699.66,9.251e-05,2]
[347551438,1735914645845,-500.0,9.251e-05,2]
[347551440,1735914645856,-4118.58,9.251e-05,2]
[347551442,1735914645865,-539.46,9.251e-05,2]
[347551444,1735914645874,-500.0,9.251e-05,2]
[347551446,1735914645886,-545.59,9.251e-05,2]
[347551448,1735914645896,-937.35,9.251e-05,2]
[347551450,1735914645905,-660.86,9.251e-05,2]
[347551454,1735914645914,-912.7,9.251e-05,2]
[347551457,1735914645924,-694.89,9.251e-05,2]
[347551461,1735914645933,-580.44,9.251e-05,2]
[347551463,1735914645942,-1691.05,9.251e-05,2]
[347551465,1735914645951,-943.74,9.251e-05,2]
[347551467,1735914645960,-636.01,9.251e-05,2]
[347551469,1735914645969,-737.92,9.251e-05,2]
[347551471,1735914645979,-500.0,9.251e-05,2]
[347551473,1735914645988,-670.39,9.251e-05,2]
[347551475,1735914645997,-500.0,9.251e-05,2]
[347551477,1735914646006,-3700.42,9.251e-05,2]
[347551479,1735914646015,-500.0,9.251e-05,2]
[347551481,1735914646024,-2660.56759,9.251e-05,2]
[347551483,1735914646033,-500.0,9.251e-05,2]
[347551485,1735914646043,-527.82,9.251e-05,2]
[347551487,1735914646052,-580.31,9.251e-05,2]
[347551489,1735914646061,-1372.85,9.251e-05,2]
[347551491,1735914646070,-2019.66,9.251e-05,2]
[347551493,1735914646080,-1221.73,9.251e-05,2]
[347551495,1735914646089,-500.0,9.251e-05,2]
[347551497,1735914646097,-1457.54,9.251e-05,2]
[347551498,1735914646107,-2539.972416,9.251e-05,2]
[347551500,1735914646115,-500.0,9.251e-05,2]
[347551502,1735914646125,-1707.49,9.251e-05,2]
[347551504,1735914646135,-153.754164,9.251e-05,2]
[347551506,1735914646144,-2507.86,9.251e-05,2]
[347551508,1735914646153,-714.46,9.251e-05,2]
[347551510,1735914646163,-797.3,9.251e-05,2]
[347551512,1735914646171,-857.84,9.251e-05,2]
[347551514,1735914646181,-681.81,9.251e-05,2]
[347551516,1735914646190,-1782.94,9.251e-05,2]
[347551518,1735914646199,-1262.91,9.251e-05,2]
[347551520,1735914646209,-999.25,9.251e-05,2]
[347551522,1735914646218,-500.0,9.251e-05,2]
[347551524,1735914646227,-1251.64,9.251e-05,2]
[347551526,1735914646236,-772.43,9.251e-05,2]
[347551528,1735914646245,-500.0,9.251e-05,2]
[347551530,1735914646254,-2024.7,9.251e-05,2]
[347551532,1735914646262,-1102.49,9.251e-05,2]
[347551534,1735914646271,-917.6,9.251e-05,2]
[347551536,1735914646280,-500.0,9.251e-05,2]
[347551538,1735914646289,-1255.02,9.251e-05,2]
[347551540,1735914646298,-500.0,9.251e-05,2]
[347551542,1735914646307,-3434.38,9.251e-05,2]
[347551544,1735914646316,-1843.91,9.251e-05,2]
[347551546,1735914646325,-1020.9,9.251e-05,2]
[347551548,1735914646334,-5762.79,9.251e-05,2]
[347551550,1735914646343,-500.0,9.251e-05,2]
[347551552,1735914646352,-500.0,9.252e-05,2]
[347551554,1735914646360,-500.0,9.252e-05,2]
[347551556,1735914646369,-500.0,9.252e-05,2]
[347551558,1735914646378,-500.0,9.252e-05,2]
[347551559,1735914646388,-534.78,9.252e-05,2]
[347551561,1735914646398,-701.59,9.252e-05,2]
[347551564,1735914646407,-500.0,9.252e-05,2]
[347551565,1735914646416,-524.91,9.252e-05,2]
[347551567,1735914646425,-500.0,9.252e-05,2]
[347551569,1735914646434,-500.0,9.252e-05,2]
[347551571,1735914646443,-500.0,9.252e-05,2]
[347551573,1735914646452,-500.0,9.252e-05,2]
[347551575,1735914646461,-709.47,9.252e-05,2]
[347551577,1735914646470,-500.0,9.252e-05,2]
[347551579,1735914646479,-500.0,9.252e-05,2]
[347551581,1735914646488,-327.41908749,9.252e-05,2]
[347551583,1735914646497,-585.67,9.252e-05,2]
[347551585,1735914646506,-572.49,9.252e-05,2]
[347551587,1735914646515,-500.0,9.252e-05,2]
[347551589,1735914646524,-500.0,9.252e-05,2]
[347551591,1735914646533,-628.29456363,9.252e-05,2]
[347551593,1735914646542,-500.0,9.252e-05,2]
[347551595,1735914646552,-500.0,9.252e-05,2]
[347551596,1735914646561,-500.0,9.252e-05,2]
[347551598,1735914646571,-500.0,9.252e-05,2]
[347551600,1735914646580,-660.04,9.252e-05,2]
[347551602,1735914646589,-500.0,9.252e-05,2]
[347551604,1735914646598,-608.25,9.252e-05,2]
[347551606,1735914646607,-500.0,9.252e-05,2]
[347551608,1735914646617,-500.0,9.252e-05,2]
[347551610,1735914646626,-500.0,9.252e-05,2]
[347551612,1735914646637,-616.45,9.252e-05,2]
[347551614,1735914646646,-621.26,9.252e-05,2]
[347551615,1735914646655,-537.03,9.252e-05,2]
[347551618,1735914646668,-500.0,9.252e-05,2]
[347551620,1735914646677,-634.25,9.252e-05,2]
[347551622,1735914646688,-689.94,9.252e-05,2]
[347551624,1735914646698,-500.0,9.252e-05,2]
[347551625,1735914646707,-500.0,9.252e-05,2]
[347551626,1735914646717,-587.61,9.252e-05,2]
[347551627,1735914646726,-500.0,9.252e-05,2]
[347551628,1735914646741,-500.0,9.252e-05,2]
[347551629,1735914646751,-500.0,9.252e-05,2]
[347551630,1735914646760,-500.0,9.252e-05,2]
[347551631,1735914646769,-837.83,9.252e-05,2]
[347551632,1735914646780,-597.76,9.252e-05,2]
[347551633,1735914646790,-500.0,9.252e-05,2]
[347551634,1735914646799,-500.0,9.252e-05,2]
[347551635,1735914646810,-500.0,9.252e-05,2]
[347551636,1735914646819,-512.57,9.252e-05,2]
[347551637,1735914646829,-500.0,9.252e-05,2]
[347551638,1735914646839,-637.33,9.252e-05,2]
[347551639,1735914646848,-1134.13,9.252e-05,2]
[347551640,1735914646857,-536.33,9.252e-05,2]
[347551641,1735914646866,-500.0,9.252e-05,2]
[347551642,1735914646876,-631.98,9.252e-05,2]
[347551643,1735914646886,-500.0,9.252e-05,2]
[347551644,1735914646895,-563.39,9.252e-05,2]
[347551645,1735914646904,-1259.97,9.252e-05,2]
[347551646,1735914646914,-500.0,9.252e-05,2]
[347551647,1735914646923,-500.0,9.252e-05,2]
[347551648,1735914646932,-992.53,9.252e-05,2]
[347551650,1735914646941,-500.0,9.252e-05,2]
[347551652,1735914646951,-715.3,9.252e-05,2]
[347551654,1735914646960,-544.02,9.252e-05,2]
[347551656,1735914646970,-605.65,9.252e-05,2]
[347551658,1735914646979,-500.0,9.252e-05,2]
[347551661,1735914646989,-1200.01,9.252e-05,2]
[347551663,1735914646998,-629.94,9.252e-05,2]
[347551665,1735914647008,-500.0,9.252e-05,2]
[347551667,1735914647017,-521.13,9.252e-05,2]
[347551669,1735914647027,-500.0,9.252e-05,2]
[347551671,1735914647037,-1743.85,9.252e-05,2]
[347551673,1735914647046,-662.08,9.252e-05,2]
[347551675,1735914647055,-1252.39,9.252e-05,2]
[347551677,1735914647065,-1419.59,9.252e-05,2]
[347551701,1735914647306,-500.0,9.252e-05,2]
[347551703,1735914647316,-1494.0,9.252e-05,2]
[347551705,1735914647325,-564.36,9.252e-05,2]
[347551707,1735914647334,-1583.62,9.252e-05,2]
[347551709,1735914647343,-531.87,9.252e-05,2]
[347551711,1735914647353,-500.0,9.252e-05,2]
[347551713,1735914647363,-3439.28,9.252e-05,2]
[347551715,1735914647372,-772.59,9.252e-05,2]
[347551717,1735914647383,-500.0,9.252e-05,2]
[347551719,1735914647392,-500.0,9.252e-05,2]
[347551721,1735914647401,-516.82,9.252e-05,2]
[347551723,1735914647411,-947.51,9.252e-05,2]
[347551725,1735914647420,-1318.25,9.252e-05,2]
[347551727,1735914647433,-598.08,9.252e-05,2]
[347551729,1735914647444,-2185.73,9.252e-05,2]
[347551731,1735914647454,-1214.78,9.252e-05,2]
[347551733,1735914647463,-1242.61,9.252e-05,2]
[347551735,1735914647472,-1216.57,9.252e-05,2]
[347551737,1735914647481,-1652.79,9.342e-05,2]
[347551739,1735914647490,-1652.79,9.342e-05,2]
[347551741,1735914647500,-1652.79,9.342e-05,2]
[347551743,1735914647509,-1652.79,9.342e-05,2]
[347551745,1735914647520,-1652.79,9.342e-05,2]
[347551747,1735914647529,-1652.79,9.342e-05,2]
[347551749,1735914647539,-1652.79,9.342e-05,2]
[347551751,1735914647548,-1652.79,9.342e-05,2]
[347551753,1735914647557,-1652.79,9.342e-05,2]
[347551755,1735914647567,-1652.79,9.342e-05,2]
[347551757,1735914647577,-1652.79,9.342e-05,2]
[347551759,1735914647587,-1652.79,9.342e-05,2]
[347551761,1735914647597,-1652.79,9.342e-05,2]
[347551763,1735914647607,-1652.79,9.342e-05,2]
[347551765,1735914647616,-1652.79,9.342e-05,2]
[347551767,1735914647626,-1652.79,9.342e-05,2]
[347551769,1735914647637,-1652.79,9.342e-05,2]
[347551771,1735914647647,-1652.79,9.342e-05,2]
[347551773,1735914647656,-1652.79,9.342e-05,2]
[347551775,1735914647666,-1652.79,9.342e-05,2]
[347551777,1735914647675,-1652.79,9.342e-05,2]
[347551779,1735914647684,-1652.79,9.342e-05,2]
[347551781,1735914647694,-1652.79,9.342e-05,2]
[347551783,1735914647705,-1653.01164997,9.342e-05,2]
[347551785,1735914647714,-152.0,9.355e-05,3]
[347551787,1735914647723,-150.0,9.402e-05,2]
[347551789,1735914647735,-500.0,9.424e-05,2]
[347551791,1735914647744,-808.45,9.424e-05,2]
[347551793,1735914647753,-706.14,9.424e-05,2]
[347551795,1735914647762,-500.0,9.424e-05,2]
[347551797,1735914647776,-589.89,9.424e-05,2]
[347551799,1735914647784,-500.0,9.424e-05,2]
[347551801,1735914647793,-811.76,9.424e-05,2]
[347551803,1735914647804,-684.9,9.424e-05,2]
[347551805,1735914647814,-620.18,9.424e-05,2]
[347551807,1735914647823,-500.0,9.424e-05,2]
[347551809,1735914647832,-500.0,9.424e-05,2]
[347551811,1735914647841,-500.0,9.424e-05,2]
[347551813,1735914647851,-500.0,9.424e-05,2]
[347551815,1735914647860,-583.4,9.424e-05,2]
[347551817,1735914647870,-500.0,9.424e-05,2]
[347551819,1735914647879,-800.4,9.424e-05,2]
[347551821,1735914647891,-644.87,9.424e-05,2]
[347551823,1735914647900,-500.0,9.424e-05,2]
[347551825,1735914647910,-643.5628338,9.424e-05,2]
[347551827,1735914647919,-500.0,9.424e-05,2]
[347551829,1735914647928,-679.25,9.424e-05,2]
[347551831,1735914647938,-500.0,9.424e-05,2]
[347551833,1735914647948,-674.46,9.424e-05,2]
[347551835,1735914647958,-500.0,9.424e-05,2]
[347551837,1735914647967,-716.38,9.424e-05,2]
[347551838,1735914647976,-500.0,9.424e-05,2]
[347551839,1735914647986,-500.0,9.424e-05,2]
[347551840,1735914647995,-500.0,9.424e-05,2]
[347551841,1735914648004,-743.46,9.424e-05,2]
[347551842,1735914648014,-614.19,9.424e-05,2]
[347551843,1735914648024,-500.0,9.424e-05,2]
[347551844,1735914648034,-500.0,9.424e-05,2]
[347551845,1735914648044,-651.58,9.424e-05,2]
[347551846,1735914648053,-500.0,9.424e-05,2]
[347551847,1735914648063,-500.0,9.424e-05,2]
[347551848,1735914648073,-822.37,9.424e-05,2]
[347551849,1735914648083,-500.0,9.424e-05,2]
[347551850,1735914648092,-1420.48,9.424e-05,2]
[347551851,1735914648102,-500.0,9.424e-05,2]
[347551852,1735914648112,-500.0,9.424e-05,2]
[347551853,1735914648122,-500.0,9.424e-05,2]
[347551855,1735914648135,-821.16,9.424e-05,2]
[347551857,1735914648146,-559.75,9.424e-05,2]
[347551859,1735914648156,-574.04,9.424e-05,2]
[347551861,1735914648167,-888.3,9.424e-05,2]
[347551863,1735914648177,-795.74,9.424e-05,2]
[347551865,1735914648187,-500.0,9.424e-05,2]
[347551867,1735914648197,-965.13,9.424e-05,2]
[347551869,1735914648207,-3782.81,9.424e-05,2]
[347551872,1735914648217,-2181.03,9.424e-05,2]
[347551874,1735914648227,-709.36,9.424e-05,2]
[347551876,1735914648237,-548.14,9.424e-05,2]
[347551878,1735914648247,-577.26,9.424e-05,2]
[347551880,1735914648257,-4137.15,9.424e-05,2]
[347551882,1735914648266,-1148.668,9.48e-05,2]
[347551884,1735914648275,-500.0,9.524e-05,2]
[347551886,1735914648285,-500.0,9.524e-05,2]
[347551888,1735914648294,-500.0,9.524e-05,2]
[347551890,1735914648303,-500.0,9.524e-05,2]
[347551891,1735914648314,-500.0,9.524e-05,2]
[347551894,1735914648325,-237.3566652,9.524e-05,2]
[347551896,1735914648334,-500.0,9.524e-05,2]
[347551898,1735914648343,-500.0,9.524e-05,2]
[347551900,1735914648353,-500.0,9.524e-05,2]
[347551902,1735914648363,-500.0,9.524e-05,2]
[347551904,1735914648372,-500.0,9.524e-05,2]
[347551905,1735914648382,-500.0,9.524e-05,2]
[347551907,1735914648395,-296.33841152,9.524e-05,2]
[347551910,1735914648405,-500.0,9.524e-05,2]
[347551912,1735914648415,-500.0,9.524e-05,2]
[347551913,1735914648424,-500.0,9.524e-05,2]
[347551916,1735914648435,-500.0,9.524e-05,2]
[347551918,1735914648445,-500.0,9.524e-05,2]
[347551919,1735914648455,-500.0,9.524e-05,2]
[347551922,1735914648465,-596.73,9.524e-05,2]
[347551924,1735914648476,-636.5,9.524e-05,2]
[347551926,1735914648486,-500.0,9.524e-05,2]
[347551928,1735914648496,-500.0,9.524e-05,2]
[347551930,1735914648506,-500.0,9.524e-05,2]
[347551931,1735914648517,-500.0,9.524e-05,2]
[347551934,1735914648527,-500.0,9.524e-05,2]
[347551936,1735914648538,-500.0,9.524e-05,2]
[347551938,1735914648548,-500.0,9.524e-05,2]
[347551939,1735914648558,-500.0,9.524e-05,2]
[347551942,1735914648568,-500.0,9.524e-05,2]
[347551943,1735914648578,-500.0,9.524e-05,2]
[347551946,1735914648588,-500.0,9.524e-05,2]
[347551947,1735914648597,-500.0,9.524e-05,2]
[347551950,1735914648607,-500.0,9.524e-05,2]
[347551951,1735914648618,-538.43,9.524e-05,2]
[347551953,1735914648627,-500.0,9.524e-05,2]
[347551955,1735914648641,-500.0,9.524e-05,2]
[347551956,1735914648650,-500.0,9.524e-05,2]
[347551957,1735914648660,-500.0,9.524e-05,2]
[347551958,1735914648670,-554.27,9.524e-05,2]
[347551959,1735914648680,-500.0,9.524e-05,2]
[347551960,1735914648689,-500.0,9.524e-05,2]
[347551961,1735914648698,-834.28,9.524e-05,2]
[347551962,1735914648707,-500.0,9.524e-05,2]
[347551963,1735914648716,-500.0,9.524e-05,2]
[347551964,1735914648725,-583.62,9.524e-05,2]
[347551965,1735914648738,-559.67,9.524e-05,2]
[347551966,1735914648747,-500.0,9.524e-05,2]
[347551968,1735914648757,-500.0,9.524e-05,2]
[347551969,1735914648766,-500.0,9.524e-05,2]
[347551971,1735914648777,-500.0,9.524e-05,2]
[347551973,1735914648787,-228.9,9.524e-05,2]
[347551975,1735914648796,-500.0,9.524e-05,2]
[347551977,1735914648805,-500.0,9.524e-05,2]
[347551979,1735914648815,-548.53,9.524e-05,2]
[347551981,1735914648824,-500.0,9.524e-05,2]
[347551983,1735914648833,-500.0,9.524e-05,2]
[347551985,1735914648842,-500.0,9.524e-05,2]
[347551987,1735914648852,-1194.13,9.524e-05,2]
[347551989,1735914648861,-528.92018983,9.524e-05,2]
[347551991,1735914648873,-500.0,9.524e-05,2]
[347551993,1735914648886,-500.0,9.524e-05,2]